fUSD/lending_fUSD_20260621
["ID","MTS","AMOUNT","RATE_DAILY","PERIOD"]
[425957775,1782043884000,-196.09839793,0.00028393,2]
[425957778,1782043884000,-4915.3374559,0.00028398,2]
[425957779,1782043884000,-189.53698715,0.00028398,2]
[425957780,1782043884000,-250.0,0.00028418,10]
[425957781,1782043884000,-162.791075,0.00028472,10]
[425957782,1782043884000,-2328.4466048,0.0002848,2]
[425957783,1782043884000,-4247.118239,0.0002848,2]
[425957784,1782043884000,-235640.4785893,0.0002848,2]
[425957785,1782043884000,-229.87120711,0.00028492,2]
[425957786,1782043884000,-501.82455083,0.00028493,2]
[425957787,1782043884000,-489.807298,0.00028493,2]
[425957732,1782043884000,-500.0,0.00028219,2]
[425957776,1782043884000,-2388.21312966,0.00028393,2]
[425957759,1782043884000,-333.64757059,0.00028219,2]
[425957788,1782043884000,-500.0,0.00028493,2]
[425957758,1782043884000,-500.0,0.00028219,2]
[425957753,1782043884000,-500.0,0.00028219,2]
[425957733,1782043884000,-4078.59,0.00028219,2]
[425957735,1782043884000,-2353.75,0.00028219,2]
[425957737,1782043884000,-530.95,0.00028219,2]
[425957736,1782043884000,-762.22,0.00028219,2]
[425957729,1782043884000,-500.0,0.00028219,2]
[425957738,1782043884000,-500.0,0.00028219,2]
[425957740,1782043884000,-528.8,0.00028219,2]
[425957739,1782043884000,-627.07629965,0.00028219,2]
[425957747,1782043884000,-500.0,0.00028219,2]
[425957748,1782043884000,-456.54935189,0.00028219,2]
[425957746,1782043884000,-500.0,0.00028219,2]
[425957744,1782043884000,-500.0,0.00028219,2]
[425957730,1782043884000,-500.0,0.00028219,2]
[425957742,1782043884000,-1076.55,0.00028219,2]
[425957756,1782043884000,-237.30265246,0.00028219,2]
[425957755,1782043884000,-7023.89,0.00028219,2]
[425957752,1782043884000,-500.0,0.00028219,2]
[425957762,1782043884000,-500.0,0.00028219,2]
[425957743,1782043884000,-500.0,0.00028219,2]
[425957761,1782043884000,-152.20845448,0.00028219,2]
[425957754,1782043884000,-291.77283641,0.00028219,2]
[425957751,1782043884000,-6494.57,0.00028219,2]
[425957741,1782043884000,-598.89,0.00028219,2]
[425957745,1782043884000,-804.51,0.00028219,2]
[425957749,1782043884000,-500.0,0.00028219,2]
[425957750,1782043884000,-500.0,0.00028219,2]
[425957760,1782043884000,-1020.5,0.00028219,2]
[425957828,1782043885000,-500.0,0.00028493,2]
[425957826,1782043885000,-403.29947283,0.00028493,2]
[425957823,1782043885000,-605.82,0.00028493,2]
[425957833,1782043885000,-500.0,0.00028493,2]
[425957820,1782043885000,-500.0,0.00028493,2]
[425957827,1782043885000,-500.0,0.00028493,2]
[425957824,1782043885000,-1209.48,0.00028493,2]
[425957822,1782043885000,-150.31,0.00028493,7]
[425957815,1782043885000,-500.0,0.00028493,2]
[425957816,1782043885000,-500.0,0.00028493,2]
[425957830,1782043885000,-500.0,0.00028493,2]
[425957831,1782043885000,-617.24,0.00028493,2]
[425957836,1782043885000,-544.21,0.00028493,2]
[425957825,1782043885000,-500.0,0.00028493,2]
[425957832,1782043885000,-500.0,0.00028493,2]
[425957835,1782043885000,-500.0,0.00028493,2]
[425957834,1782043885000,-500.0,0.00028493,2]
[425957837,1782043885000,-773.57,0.00028493,2]
[425957838,1782043885000,-500.0,0.00028493,2]
[425957844,1782043885000,-1262.83,0.00028493,2]
[425957843,1782043885000,-500.0,0.00028493,2]
[425957841,1782043885000,-500.0,0.00028493,2]
[425957839,1782043885000,-500.0,0.00028493,2]
[425957842,1782043885000,-500.0,0.00028493,2]
[425957819,1782043885000,-500.0,0.00028493,2]
[425957829,1782043885000,-500.0,0.00028493,2]
[425957817,1782043885000,-500.0,0.00028493,2]
[425957805,1782043885000,-728.37,0.00028493,2]
[425957812,1782043885000,-500.0,0.00028493,2]
[425957840,1782043885000,-500.0,0.00028493,2]
[425957797,1782043885000,-551.55,0.00028493,2]
[425957794,1782043885000,-500.0,0.00028493,2]
[425957793,1782043885000,-632.28,0.00028493,2]
[425957791,1782043885000,-725.19,0.00028493,2]
[425957790,1782043885000,-500.0,0.00028493,2]
[425957789,1782043885000,-500.0,0.00028493,2]
[425957795,1782043885000,-500.0,0.00028493,2]
[425957792,1782043885000,-500.0,0.00028493,2]
[425957796,1782043885000,-500.0,0.00028493,2]
[425957809,1782043885000,-500.0,0.00028493,2]
[425957807,1782043885000,-554.07,0.00028493,2]
[425957818,1782043885000,-500.0,0.00028493,2]
[425957798,1782043885000,-500.0,0.00028493,2]
[425957803,1782043885000,-500.0,0.00028493,2]
[425957806,1782043885000,-500.0,0.00028493,2]
[425957799,1782043885000,-500.0,0.00028493,2]
[425957801,1782043885000,-500.0,0.00028493,2]
[425957800,1782043885000,-500.0,0.00028493,2]
[425957802,1782043885000,-500.0,0.00028493,2]
[425957808,1782043885000,-500.0,0.00028493,2]
[425957811,1782043885000,-500.0,0.00028493,2]
[425957821,1782043885000,-150.0,0.00028493,2]
[425957814,1782043885000,-500.0,0.00028493,2]
[425957813,1782043885000,-500.0,0.00028493,2]
[425957810,1782043885000,-500.0,0.00028493,2]
[425957804,1782043885000,-500.0,0.00028493,2]
[425957848,1782043885000,-500.0,0.00028493,2]
[425957845,1782043885000,-622.11459867,0.00028493,2]
[425957846,1782043885000,-500.0,0.00028493,2]
[425957879,1782043885000,-500.0,0.00028493,2]
[425957875,1782043885000,-500.0,0.00028493,2]
[425957883,1782043885000,-500.0,0.00028493,2]
[425957884,1782043885000,-500.0,0.00028493,2]
[425957882,1782043885000,-500.0,0.00028493,2]
[425957881,1782043885000,-549.55,0.00028493,2]
[425957885,1782043885000,-500.0,0.00028493,2]
[425957880,1782043885000,-848.5,0.00028493,2]
[425957886,1782043885000,-4131.53,0.00028493,2]
[425957890,1782043885000,-687.14,0.00028493,2]
[425957889,1782043885000,-500.0,0.00028493,2]
[425957888,1782043885000,-584.43,0.00028493,2]
[425957876,1782043885000,-500.0,0.00028493,2]
[425957887,1782043885000,-500.0,0.00028493,2]
[425957896,1782043885000,-500.0,0.00028493,2]
[425957893,1782043885000,-553.37,0.00028493,2]
[425957902,1782043885000,-500.0,0.00028493,2]
[425957892,1782043885000,-500.0,0.00028493,2]
[425957894,1782043885000,-964.1,0.00028493,2]
[425957900,1782043885000,-500.0,0.00028493,2]
[425957898,1782043885000,-500.0,0.00028493,2]
[425957895,1782043885000,-500.0,0.00028493,2]
[425957897,1782043885000,-500.0,0.00028493,2]
[425957903,1782043885000,-500.0,0.00028493,2]
[425957901,1782043885000,-500.0,0.00028493,2]
[425957899,1782043885000,-500.0,0.00028493,2]
[425957891,1782043885000,-500.0,0.00028493,2]
[425957878,1782043885000,-500.0,0.00028493,2]
[425957847,1782043885000,-500.0,0.00028493,2]
[425957874,1782043885000,-1153.68,0.00028493,2]
[425957904,1782043885000,-500.0,0.00028493,2]
[425957849,1782043885000,-506.49,0.00028493,2]
[425957852,1782043885000,-338.12997869,0.00028493,2]
[425957854,1782043885000,-500.0,0.00028493,2]
[425957855,1782043885000,-500.0,0.00028493,2]
[425957856,1782043885000,-500.0,0.00028493,2]
[425957853,1782043885000,-500.0,0.00028493,2]
[425957877,1782043885000,-500.0,0.00028493,2]
[425957850,1782043885000,-500.0,0.00028493,2]
[425957858,1782043885000,-1011.4,0.00028493,2]
[425957860,1782043885000,-500.0,0.00028493,2]
[425957868,1782043885000,-500.0,0.00028493,2]
[425957857,1782043885000,-500.0,0.00028493,2]
[425957851,1782043885000,-500.0,0.00028493,2]
[425957859,1782043885000,-500.0,0.00028493,2]
[425957861,1782043885000,-500.0,0.00028493,2]
[425957871,1782043885000,-1874.59,0.00028493,2]
[425957870,1782043885000,-500.0,0.00028493,2]
[425957873,1782043885000,-642.95,0.00028493,2]
[425957869,1782043885000,-1508.78,0.00028493,2]
[425957872,1782043885000,-500.0,0.00028493,2]
[425957863,1782043885000,-500.0,0.00028493,2]
[425957862,1782043885000,-500.0,0.00028493,2]
[425957867,1782043885000,-557.29,0.00028493,2]
[425957864,1782043885000,-500.0,0.00028493,2]
[425957865,1782043885000,-500.0,0.00028493,2]
[425957866,1782043885000,-1214.91,0.00028493,2]
[425957943,1782043886000,-500.0,0.00028493,2]
[425957946,1782043886000,-1023.04,0.00028493,2]
[425957944,1782043886000,-500.0,0.00028493,2]
[425957952,1782043886000,-1667.9,0.00028493,2]
[425957941,1782043886000,-500.0,0.00028493,2]
[425957935,1782043886000,-500.0,0.00028493,2]
[425957937,1782043886000,-500.0,0.00028493,2]
[425957933,1782043886000,-500.0,0.00028493,2]
[425957936,1782043886000,-500.0,0.00028493,2]
[425957934,1782043886000,-500.0,0.00028493,2]
[425957938,1782043886000,-692.57,0.00028493,2]
[425957945,1782043886000,-500.0,0.00028493,2]
[425957962,1782043886000,-500.0,0.00028493,2]
[425957947,1782043886000,-500.0,0.00028493,2]
[425957948,1782043886000,-228.14477535,0.00028493,2]
[425957949,1782043886000,-500.0,0.00028493,2]
[425957951,1782043886000,-500.0,0.00028493,2]
[425957950,1782043886000,-500.0,0.00028493,2]
[425957954,1782043886000,-500.0,0.00028493,2]
[425957953,1782043886000,-500.0,0.00028493,2]
[425957955,1782043886000,-500.0,0.00028493,2]
[425957957,1782043886000,-799.33,0.00028493,2]
[425957956,1782043886000,-500.0,0.00028493,2]
[425957958,1782043886000,-500.0,0.00028493,2]
[425957959,1782043886000,-500.0,0.00028493,2]
[425957928,1782043886000,-500.0,0.00028493,2]
[425957942,1782043886000,-536.54,0.00028493,2]
[425957929,1782043886000,-500.0,0.00028493,2]
[425957922,1782043886000,-528.96619696,0.00028493,2]
[425957931,1782043886000,-547.85,0.00028493,2]
[425957963,1782043886000,-500.0,0.00028493,2]
[425957905,1782043886000,-577.55,0.00028493,2]
[425957907,1782043886000,-500.0,0.00028493,2]
[425957908,1782043886000,-500.0,0.00028493,2]
[425957915,1782043886000,-552.11,0.00028493,2]
[425957906,1782043886000,-798.72,0.00028493,2]
[425957909,1782043886000,-500.0,0.00028493,2]
[425957911,1782043886000,-1014.3,0.00028493,2]
[425957913,1782043886000,-500.0,0.00028493,2]
[425957912,1782043886000,-500.0,0.00028493,2]
[425957910,1782043886000,-616.99,0.00028493,2]
[425957914,1782043886000,-500.0,0.00028493,2]
[425957939,1782043886000,-500.0,0.00028493,2]
[425957916,1782043886000,-552.65,0.00028493,2]
[425957917,1782043886000,-1083.28,0.00028493,2]
[425957923,1782043886000,-3528.02,0.00028493,2]
[425957921,1782043886000,-500.0,0.00028493,2]
[425957927,1782043886000,-500.0,0.00028493,2]
[425957920,1782043886000,-500.0,0.00028493,2]
[425957919,1782043886000,-569.1,0.00028493,2]
[425957924,1782043886000,-615.65,0.00028493,2]
[425957925,1782043886000,-626.28103759,0.00028493,2]
[425957926,1782043886000,-500.0,0.00028493,2]
[425957940,1782043886000,-500.0,0.00028493,2]
[425957930,1782043886000,-637.34,0.00028493,2]
[425957932,1782043886000,-500.0,0.00028493,2]
[425957918,1782043886000,-587.33,0.00028493,2]
[425957961,1782043886000,-500.0,0.00028493,2]
[425957960,1782043886000,-500.0,0.00028493,2]
[425957964,1782043886000,-500.0,0.00028493,2]
[425957995,1782043886000,-500.0,0.00028493,2]
[425957997,1782043886000,-500.0,0.00028493,2]
[425957998,1782043886000,-548.62,0.00028493,2]
[425958011,1782043886000,-500.0,0.00028493,2]
[425958002,1782043886000,-500.0,0.00028493,2]
[425957999,1782043886000,-500.0,0.00028493,2]
[425958005,1782043886000,-500.0,0.00028493,2]
[425958003,1782043886000,-500.0,0.00028493,2]
[425958004,1782043886000,-500.0,0.00028493,2]
[425958010,1782043886000,-500.0,0.00028493,2]
[425958001,1782043886000,-500.0,0.00028493,2]
[425958000,1782043886000,-500.0,0.00028493,2]
[425957992,1782043886000,-528.56,0.00028493,2]
[425958009,1782043886000,-500.0,0.00028493,2]
[425958006,1782043886000,-636.33756858,0.00028493,2]
[425958017,1782043886000,-500.0,0.00028493,2]
[425958019,1782043886000,-500.0,0.00028493,2]
[425958016,1782043886000,-500.0,0.00028493,2]
[425958015,1782043886000,-693.06,0.00028493,2]
[425958014,1782043886000,-500.0,0.00028493,2]
[425958012,1782043886000,-500.0,0.00028493,2]
[425958013,1782043886000,-454.52756795,0.00028493,2]
[425958018,1782043886000,-500.0,0.00028493,2]
[425958021,1782043886000,-500.0,0.00028493,2]
[425958020,1782043886000,-41216.394702,0.00028493,2]
[425958022,1782043886000,-500.0,0.00028493,2]
[425958008,1782043886000,-500.0,0.00028493,2]
[425957994,1782043886000,-500.0,0.00028493,2]
[425958007,1782043886000,-500.0,0.00028493,2]
[425957991,1782043886000,-635.31,0.00028493,2]
[425957965,1782043886000,-219.90765827,0.00028493,2]
[425957993,1782043886000,-391.00625191,0.00028493,2]
[425957966,1782043886000,-500.0,0.00028493,2]
[425957972,1782043886000,-500.0,0.00028493,2]
[425957967,1782043886000,-633.72,0.00028493,2]
[425957976,1782043886000,-500.0,0.00028493,2]
[425957974,1782043886000,-554.44,0.00028493,2]
[425957971,1782043886000,-500.0,0.00028493,2]
[425957975,1782043886000,-500.0,0.00028493,2]
[425957970,1782043886000,-500.0,0.00028493,2]
[425957973,1782043886000,-884.8,0.00028493,2]
[425957969,1782043886000,-500.0,0.00028493,2]
[425957978,1782043886000,-747.45,0.00028493,2]
[425957988,1782043886000,-500.0,0.00028493,2]
[425957968,1782043886000,-500.0,0.00028493,2]
[425957980,1782043886000,-615.15,0.00028493,2]
[425957989,1782043886000,-500.0,0.00028493,2]
[425957996,1782043886000,-501.5,0.00028493,2]
[425957986,1782043886000,-680.74,0.00028493,2]
[425957984,1782043886000,-773.87,0.00028493,2]
[425957982,1782043886000,-500.0,0.00028493,2]
[425957981,1782043886000,-624.61,0.00028493,2]
[425957990,1782043886000,-500.0,0.00028493,2]
[425957987,1782043886000,-630.82,0.00028493,2]
[425957979,1782043886000,-500.0,0.00028493,2]
[425957983,1782043886000,-558.96784261,0.00028493,2]
[425957977,1782043886000,-500.0,0.00028493,2]
[425957985,1782043886000,-720.95,0.00028493,2]
[425958071,1782043887000,-179.53400901,0.00028493,2]
[425958069,1782043887000,-838.22,0.00028493,2]
[425958062,1782043887000,-500.0,0.00028493,2]
[425958061,1782043887000,-505.74,0.00028493,2]
[425958059,1782043887000,-589.08,0.00028493,2]
[425958058,1782043887000,-500.0,0.00028493,2]
[425958054,1782043887000,-500.0,0.00028493,2]
[425958053,1782043887000,-500.0,0.00028493,2]
[425958051,1782043887000,-500.0,0.00028493,2]
[425958055,1782043887000,-500.0,0.00028493,2]
[425958057,1782043887000,-500.0,0.00028493,2]
[425958067,1782043887000,-507.71,0.00028493,2]
[425958070,1782043887000,-500.0,0.00028493,2]
[425958065,1782043887000,-500.0,0.00028493,2]
[425958063,1782043887000,-557.79,0.00028493,2]
[425958068,1782043887000,-175.5582748,0.00028493,2]
[425958066,1782043887000,-500.0,0.00028493,2]
[425958052,1782043887000,-500.0,0.00028493,2]
[425958073,1782043887000,-500.0,0.00028493,2]
[425958074,1782043887000,-1529.65,0.00028493,2]
[425958076,1782043887000,-500.0,0.00028493,2]
[425958075,1782043887000,-1485.17,0.00028493,2]
[425958072,1782043887000,-699.95,0.00028493,2]
[425958077,1782043887000,-500.0,0.00028493,2]
[425958082,1782043887000,-500.0,0.00028493,2]
[425958064,1782043887000,-629.13,0.00028493,2]
[425958056,1782043887000,-500.0,0.00028493,2]
[425958034,1782043887000,-500.0,0.00028493,2]
[425958049,1782043887000,-500.0,0.00028493,2]
[425958079,1782043887000,-931.86,0.00028493,2]
[425958023,1782043887000,-558.29,0.00028493,2]
[425958025,1782043887000,-427.48802915,0.00028493,2]
[425958024,1782043887000,-500.0,0.00028493,2]
[425958026,1782043887000,-708.22,0.00028493,2]
[425958033,1782043887000,-1375.37,0.00028493,2]
[425958027,1782043887000,-170.260492,0.00028493,2]
[425958031,1782043887000,-500.0,0.00028493,2]
[425958032,1782043887000,-573.31,0.00028493,2]
[425958030,1782043887000,-1453.59,0.00028493,2]
[425958028,1782043887000,-500.0,0.00028493,2]
[425958029,1782043887000,-500.0,0.00028493,2]
[425958039,1782043887000,-500.0,0.00028493,2]
[425958035,1782043887000,-825.1,0.00028493,2]
[425958040,1782043887000,-835.02,0.00028493,2]
[425958037,1782043887000,-500.0,0.00028493,2]
[425958048,1782043887000,-175.10160676,0.00028493,2]
[425958045,1782043887000,-500.0,0.00028493,2]
[425958046,1782043887000,-500.0,0.00028493,2]
[425958036,1782043887000,-500.0,0.00028493,2]
[425958044,1782043887000,-500.0,0.00028493,2]
[425958043,1782043887000,-500.0,0.00028493,2]
[425958038,1782043887000,-500.0,0.00028493,2]
[425958047,1782043887000,-500.0,0.00028493,2]
[425958042,1782043887000,-500.0,0.00028493,2]
[425958041,1782043887000,-977.28,0.00028493,2]
[425958050,1782043887000,-500.0,0.00028493,2]
[425958060,1782043887000,-500.0,0.00028493,2]
[425958080,1782043887000,-500.0,0.00028493,2]
[425958086,1782043887000,-500.0,0.00028493,2]
[425958081,1782043887000,-500.0,0.00028493,2]
[425958111,1782043887000,-500.0,0.00028493,2]
[425958115,1782043887000,-500.0,0.00028493,2]
[425958114,1782043887000,-500.0,0.00028493,2]
[425958112,1782043887000,-500.0,0.00028493,2]
[425958121,1782043887000,-500.0,0.00028493,2]
[425958128,1782043887000,-500.0,0.00028493,2]
[425958120,1782043887000,-500.0,0.00028493,2]
[425958122,1782043887000,-500.0,0.00028493,2]
[425958118,1782043887000,-1110.81,0.00028493,2]
[425958123,1782043887000,-500.0,0.00028493,2]
[425958124,1782043887000,-243.52585581,0.00028493,2]
[425958129,1782043887000,-519.27421148,0.00028493,2]
[425958117,1782043887000,-1140.14,0.00028493,2]
[425958119,1782043887000,-500.0,0.00028493,2]
[425958125,1782043887000,-500.0,0.00028493,2]
[425958126,1782043887000,-620.76,0.00028493,2]
[425958130,1782043887000,-500.0,0.00028493,2]
[425958132,1782043887000,-1437.23,0.00028493,2]
[425958133,1782043887000,-500.0,0.00028493,2]
[425958136,1782043887000,-711.48,0.00028493,2]
[425958131,1782043887000,-500.0,0.00028493,2]
[425958134,1782043887000,-500.0,0.00028493,2]
[425958139,1782043887000,-500.0,0.00028493,2]
[425958135,1782043887000,-4286.1,0.00028493,2]
[425958140,1782043887000,-500.0,0.00028493,2]
[425958138,1782043887000,-500.0,0.00028493,2]
[425958127,1782043887000,-500.0,0.00028493,2]
[425958106,1782043887000,-1577.47,0.00028493,2]
[425958137,1782043887000,-500.0,0.00028493,2]
[425958116,1782043887000,-485.69372992,0.00028493,2]
[425958113,1782043887000,-500.0,0.00028493,2]
[425958084,1782043887000,-500.0,0.00028493,2]
[425958093,1782043887000,-500.0,0.00028493,2]
[425958091,1782043887000,-924.32,0.00028493,2]
[425958094,1782043887000,-500.0,0.00028493,2]
[425958087,1782043887000,-500.0,0.00028493,2]
[425958085,1782043887000,-500.0,0.00028493,2]
[425958088,1782043887000,-163.87219011,0.00028493,2]
[425958083,1782043887000,-500.0,0.00028493,2]
[425958090,1782043887000,-500.0,0.00028493,2]
[425958089,1782043887000,-533.71793331,0.00028493,2]
[425958092,1782043887000,-500.0,0.00028493,2]
[425958095,1782043887000,-500.0,0.00028493,2]
[425958078,1782043887000,-563.62,0.00028493,2]
[425958097,1782043887000,-500.0,0.00028493,2]
[425958096,1782043887000,-500.0,0.00028493,2]
[425958107,1782043887000,-764.28,0.00028493,2]
[425958109,1782043887000,-500.0,0.00028493,2]
[425958105,1782043887000,-500.0,0.00028493,2]
[425958099,1782043887000,-500.0,0.00028493,2]
[425958110,1782043887000,-500.0,0.00028493,2]
[425958101,1782043887000,-500.0,0.00028493,2]
[425958102,1782043887000,-500.0,0.00028493,2]
[425958098,1782043887000,-500.0,0.00028493,2]
[425958100,1782043887000,-541.88,0.00028493,2]
[425958108,1782043887000,-500.0,0.00028493,2]
[425958103,1782043887000,-500.0,0.00028493,2]
[425958104,1782043887000,-500.0,0.00028493,2]
[425958177,1782043888000,-500.0,0.00028493,2]
[425958174,1782043888000,-1143.56,0.00028493,2]
[425958166,1782043888000,-907.16,0.00028493,2]
[425958175,1782043888000,-500.0,0.00028493,2]
[425958168,1782043888000,-500.0,0.00028493,2]
[425958171,1782043888000,-500.0,0.00028493,2]
[425958170,1782043888000,-500.0,0.00028493,2]
[425958167,1782043888000,-500.0,0.00028493,2]
[425958173,1782043888000,-1069.33,0.00028493,2]
[425958169,1782043888000,-953.3,0.00028493,2]
[425958181,1782043888000,-500.0,0.00028493,2]
[425958179,1782043888000,-6832.79,0.00028493,2]
[425958189,1782043888000,-500.0,0.00028493,2]
[425958180,1782043888000,-500.0,0.00028493,2]
[425958176,1782043888000,-500.0,0.00028493,2]
[425958187,1782043888000,-500.0,0.00028493,2]
[425958188,1782043888000,-1608.89,0.00028493,2]
[425958184,1782043888000,-500.0,0.00028493,2]
[425958185,1782043888000,-6837.07,0.00028493,2]
[425958186,1782043888000,-520.25749114,0.00028493,2]
[425958182,1782043888000,-770.36,0.00028493,2]
[425958172,1782043888000,-6393.06,0.00028493,2]
[425958165,1782043888000,-500.0,0.00028493,2]
[425958163,1782043888000,-500.0,0.00028493,2]
[425958164,1782043888000,-500.0,0.00028493,2]
[425958178,1782043888000,-175.91126475,0.00028493,2]
[425958148,1782043888000,-622.37311134,0.00028493,2]
[425958143,1782043888000,-1019.68,0.00028493,2]
[425958141,1782043888000,-500.0,0.00028493,2]
[425958150,1782043888000,-500.0,0.00028493,2]
[425958146,1782043888000,-450.19425557,0.00028493,2]
[425958152,1782043888000,-500.0,0.00028493,2]
[425958145,1782043888000,-500.0,0.00028493,2]
[425958147,1782043888000,-500.0,0.00028493,2]
[425958151,1782043888000,-500.0,0.00028493,2]
[425958142,1782043888000,-500.0,0.00028493,2]
[425958149,1782043888000,-500.0,0.00028493,2]
[425958153,1782043888000,-500.0,0.00028493,2]
[425958155,1782043888000,-769.47,0.00028493,2]
[425958156,1782043888000,-500.0,0.00028493,2]
[425958154,1782043888000,-536.39,0.00028493,2]
[425958160,1782043888000,-3542.95,0.00028493,2]
[425958158,1782043888000,-500.0,0.00028493,2]
[425958157,1782043888000,-500.0,0.00028493,2]
[425958162,1782043888000,-509.08694238,0.00028493,2]
[425958159,1782043888000,-271.0091866,0.00028493,2]
[425958161,1782043888000,-500.0,0.00028493,2]
[425958144,1782043888000,-509.74,0.00028493,2]
[425958183,1782043888000,-500.0,0.00028493,2]
[425958202,1782043888000,-500.0,0.00028493,2]
[425958216,1782043888000,-568.41,0.00028493,2]
[425958218,1782043888000,-500.0,0.00028493,2]
[425958220,1782043888000,-500.0,0.00028493,2]
[425958219,1782043888000,-500.0,0.00028493,2]
[425958221,1782043888000,-500.0,0.00028493,2]
[425958222,1782043888000,-908.25,0.00028493,2]
[425958225,1782043888000,-694.36,0.00028493,2]
[425958223,1782043888000,-500.0,0.00028493,2]
[425958224,1782043888000,-500.0,0.00028493,2]
[425958226,1782043888000,-500.0,0.00028493,2]
[425958228,1782043888000,-500.0,0.00028493,2]
[425958235,1782043888000,-4706.4,0.00028493,2]
[425958232,1782043888000,-519.47637784,0.00028493,2]
[425958229,1782043888000,-4338.0,0.00028493,2]
[425958230,1782043888000,-500.0,0.00028493,2]
[425958237,1782043888000,-500.0,0.00028493,2]
[425958233,1782043888000,-5230.31,0.00028493,2]
[425958234,1782043888000,-532.12523778,0.00028493,2]
[425958236,1782043888000,-567.61,0.00028493,2]
[425958231,1782043888000,-500.0,0.00028493,2]
[425958191,1782043888000,-587.27,0.00028493,2]
[425958217,1782043888000,-5157.88,0.00028493,2]
[425958213,1782043888000,-8712.79,0.00028493,2]
[425958227,1782043888000,-1343.52,0.00028493,2]
[425958212,1782043888000,-500.0,0.00028493,2]
[425958201,1782043888000,-500.0,0.00028493,2]
[425958214,1782043888000,-500.0,0.00028493,2]
[425958190,1782043888000,-500.0,0.00028493,2]
[425958203,1782043888000,-500.0,0.00028493,2]
[425958192,1782043888000,-8981.31,0.00028493,2]
[425958198,1782043888000,-500.0,0.00028493,2]
[425958193,1782043888000,-1005.92,0.00028493,2]
[425958197,1782043888000,-500.0,0.00028493,2]
[425958199,1782043888000,-1403.01,0.00028493,2]
[425958200,1782043888000,-500.0,0.00028493,2]
[425958194,1782043888000,-1479.07,0.00028493,2]
[425958205,1782043888000,-8534.76,0.00028493,2]
[425958196,1782043888000,-500.0,0.00028493,2]
[425958207,1782043888000,-545.71,0.00028493,2]
[425958209,1782043888000,-500.0,0.00028493,2]
[425958206,1782043888000,-500.0,0.00028493,2]
[425958204,1782043888000,-500.0,0.00028493,2]
[425958208,1782043888000,-2237.6,0.00028493,2]
[425958210,1782043888000,-4510.72,0.00028493,2]
[425958211,1782043888000,-2820.15,0.00028493,2]
[425958215,1782043888000,-1490.46,0.00028493,2]
[425958195,1782043888000,-500.0,0.00028493,2]
[425958284,1782043889000,-500.0,0.00028493,2]
[425958265,1782043889000,-500.0,0.00028493,2]
[425958283,1782043889000,-6082.93,0.00028493,2]
[425958279,1782043889000,-8419.53,0.00028493,2]
[425958274,1782043889000,-500.0,0.00028493,2]
[425958275,1782043889000,-500.0,0.00028493,2]
[425958273,1782043889000,-4546.06,0.00028493,2]